bitfinex-derivatives/quotes_BNBF0:USTF0_20260110
["timestamp","ask_amount","ask_price","bid_price","bid_amount"]
[1768031762614,0.19192746,907.28,905.81,0.68947861]
[1768031762813,0.19192746,907.28,905.82,0.68947861]
[1768031763113,0.19192746,907.28,905.83,0.68947861]
[1768031763309,0.19192746,907.28,905.84,0.68947861]
[1768031763511,0.19192746,907.28,905.85,0.68947861]
[1768031763711,0.19192746,907.28,905.86,0.68947861]
[1768031763911,0.19192746,907.28,905.87,0.68947861]
[1768031764115,0.19192746,907.28,905.88,0.68947861]
[1768031764315,0.19192746,907.28,905.89,0.68947861]
[1768031764516,0.19192746,907.28,905.9,0.68947861]
[1768031764714,0.19192746,907.28,905.91,0.68947861]
[1768031764913,0.19192746,907.28,905.92,0.68947861]
[1768031765113,0.19192746,907.28,905.93,0.68947861]
[1768031765313,0.19192746,907.28,905.94,0.68947861]
[1768031765615,0.19192746,907.28,905.95,0.68947861]
[1768031765814,0.19192746,907.28,905.96,0.68947861]
[1768031766015,0.19192746,907.28,905.97,0.68947861]
[1768031766216,0.19192746,907.28,905.98,0.68947861]
[1768031766416,0.19192746,907.28,905.99,0.68947861]
[1768031766719,0.19192746,907.28,906.0,0.68947861]
[1768031767014,0.19192746,907.28,906.01,0.68947861]
[1768031767214,0.19192746,907.28,905.77,1.902]
[1768031767415,0.19192746,907.28,905.78,0.68952352]
[1768031767620,0.19192746,907.28,905.79,0.68952352]
[1768031767915,0.19192746,907.28,905.8,0.68952352]
[1768031768119,0.19192746,907.28,905.81,0.68952352]
[1768031768319,0.19192746,907.28,905.82,0.68952352]
[1768031768517,0.19192746,907.28,905.83,0.68952352]
[1768031768720,0.19192746,907.28,905.84,0.68952352]
[1768031768917,0.19192746,907.28,905.85,0.68952352]
[1768031769116,0.19192746,907.28,905.86,0.68952352]
[1768031769315,0.19192746,907.28,905.87,0.68952352]
[1768031769521,0.19192746,907.28,905.88,0.68952352]
[1768031769820,0.19192746,907.28,905.89,0.68952352]
[1768031770118,0.19192746,907.28,905.9,0.68952352]
[1768031770419,0.19192746,907.28,905.91,0.68952352]
[1768031770621,0.19192746,907.28,905.92,0.68952352]
[1768031770915,0.19192746,907.28,905.93,0.68952352]
[1768031771118,0.19192746,907.28,905.94,0.68952352]
[1768031771317,0.19192746,907.28,905.95,0.68952352]
[1768031771522,0.19192746,907.28,905.96,0.68952352]
[1768031771719,0.19192746,907.28,905.97,0.68952352]
[1768031771918,0.19192746,907.28,905.98,0.68952352]
[1768031772117,0.19192746,907.28,905.99,0.68952352]
[1768031772323,0.19192746,907.28,906.0,0.68952352]
[1768031772622,0.19192746,907.28,906.01,0.68952352]
[1768031772920,0.19192746,907.28,905.77,1.902]
[1768031773118,0.19192746,907.28,905.78,0.68960936]
[1768031773321,0.19192746,907.28,905.79,0.68960936]
[1768031773518,0.19192746,907.28,905.8,0.68960936]
[1768031773722,0.19192746,907.28,905.81,0.68960936]
[1768031773922,0.19192746,907.28,905.82,0.68960936]
[1768031774123,0.19192746,907.28,905.83,0.68960936]
[1768031774421,0.19192746,907.28,905.84,0.68960936]
[1768031774621,0.19192746,907.28,905.85,0.68960936]
[1768031774821,0.19192746,907.28,905.86,0.68960936]
[1768031775020,0.19192746,907.28,905.87,0.68960936]
[1768031775221,0.19192746,907.28,905.88,0.68960936]
[1768031775419,0.19192746,907.28,905.89,0.68960936]
[1768031775623,0.19192746,907.28,905.9,0.68960936]
[1768031775923,0.19192746,907.28,905.91,0.68960936]
[1768031776121,0.19192746,907.28,905.92,0.68960936]
[1768031776324,0.19192746,907.28,905.93,0.68960936]
[1768031776522,0.19192746,907.28,905.94,0.68960936]
[1768031776722,0.19192746,907.28,905.95,0.68960936]
[1768031776921,0.19192746,907.28,905.96,0.68957637]
[1768031777220,0.19192746,907.28,905.97,0.68957637]
[1768031777522,0.19192746,907.28,905.98,0.68957637]
[1768031777825,0.19192746,907.28,905.99,0.68957637]
[1768031778021,0.19192746,907.28,906.0,0.68957637]
[1768031778224,0.19192746,907.28,905.77,1.902]
[1768031778424,0.19192746,907.28,905.78,0.6895586]
[1768031778623,0.19192746,907.28,905.79,0.6895586]
[1768031778820,0.19192746,907.28,905.8,0.6895586]
[1768031779026,0.19192746,907.28,905.81,0.6895586]
[1768031779227,0.19192746,907.28,905.82,0.6895586]
[1768031779424,0.19192746,907.28,905.83,0.6895586]
[1768031779622,0.19192746,907.28,905.84,0.6895586]
[1768031779827,0.19192746,907.28,905.85,0.6895586]
[1768031780025,0.19192746,907.28,905.86,0.6895586]
[1768031780224,0.19192746,907.28,905.87,0.6895586]
[1768031780429,0.19192746,907.28,905.88,0.6895586]
[1768031780626,0.19192746,907.28,905.89,0.6895586]
[1768031780832,0.19192746,907.28,905.9,0.6895586]
[1768031781127,0.19192746,907.28,905.91,0.6895586]
[1768031781330,0.19192746,907.28,905.92,0.6895586]
[1768031781531,0.19192746,907.28,905.93,0.6895586]
[1768031781726,0.19192746,907.28,905.94,0.6895586]
[1768031781927,0.19192746,907.28,905.95,0.6895586]
[1768031782131,0.19192746,907.28,905.96,0.6895586]
[1768031782427,0.19192746,907.28,905.97,0.6895586]
[1768031782630,0.19192746,907.28,905.98,0.6895586]
[1768031782832,0.19192746,907.28,905.99,0.6895586]
[1768031783032,0.19192746,907.28,905.77,1.902]
[1768031783228,0.19192746,907.28,905.78,0.68911097]
[1768031783427,0.19192746,907.28,905.79,0.68911097]
[1768031783628,0.19192746,907.28,905.8,0.68911097]
[1768031783931,0.19192746,907.28,905.81,0.68911097]
[1768031784131,0.19192746,907.28,905.82,0.68911097]
[1768031784332,0.19192746,907.28,905.83,0.68911097]
[1768031784634,0.19192746,907.28,905.84,0.68911097]
[1768031784831,0.19192746,907.28,905.85,0.68911097]
[1768031785032,0.19192746,907.28,905.86,0.68911097]
[1768031785229,0.19192746,907.28,905.87,0.68911097]
[1768031785534,0.19192746,907.28,905.88,0.68911097]
[1768031785734,0.19192746,907.28,905.89,0.68911097]
[1768031785931,0.19192746,907.28,905.9,0.68911097]
[1768031786132,0.19192746,907.28,905.91,0.68911097]
[1768031786331,0.19192746,907.28,905.92,0.68911097]
[1768031786534,0.19192746,907.28,905.93,0.68911097]
[1768031786736,0.19192746,907.28,905.94,0.68911097]
[1768031786933,0.19192746,907.28,905.95,0.68911097]
[1768031787132,0.19192746,907.28,905.96,0.68911097]
[1768031787331,0.19192746,907.28,905.97,0.68911097]
[1768031787534,0.19192746,907.28,905.98,0.68911097]
[1768031787835,0.19192746,907.28,905.99,0.68911097]
[1768031788033,0.19192746,907.28,905.77,1.902]
[1768031788237,0.19192746,907.28,905.78,0.68906551]
[1768031788538,0.19192746,907.28,905.79,0.68906551]
[1768031788739,0.19192746,907.28,905.8,0.68906551]
[1768031788935,0.19192746,907.28,905.81,0.68906551]
[1768031789235,0.19192746,907.28,905.82,0.68906551]
[1768031789440,0.19192746,907.28,905.83,0.68906551]
[1768031789637,0.19192746,907.28,905.84,0.68906551]
[1768031789841,0.19192746,907.28,905.85,0.68906551]
[1768031790041,0.19192746,907.28,905.86,0.68906551]
[1768031790242,0.19192746,907.28,905.87,0.68906551]
[1768031790442,0.19192746,907.28,905.88,0.68906551]
[1768031790642,0.19192746,907.28,905.89,0.68906551]
[1768031790939,0.19192746,907.28,905.9,0.68906551]
[1768031791142,0.19192746,907.28,905.91,0.68906551]
[1768031791343,0.19192746,907.28,905.92,0.68906551]
[1768031791643,0.19192746,907.28,905.93,0.68906551]
[1768031791939,0.19192746,907.28,905.94,0.68906551]
[1768031792139,0.19192746,907.28,905.95,0.68906551]
[1768031792340,0.19192746,907.28,905.96,0.68906551]
[1768031792539,0.19192746,907.28,905.97,0.68906551]
[1768031792743,0.19192746,907.28,905.98,0.68906551]
[1768031793040,0.19192746,907.28,905.69,0.82921563]
[1768031793242,0.19192746,907.28,905.7,0.68904363]
[1768031793543,0.19192746,907.28,905.69,0.82921563]
[1768031793544,0.19192746,907.28,905.71,0.68904363]
[1768031793741,0.19192746,907.28,905.72,0.68904363]
[1768031793944,0.19192746,907.28,905.73,0.68904363]
[1768031794244,0.19192746,907.28,905.74,0.68904363]
[1768031794545,0.19192746,907.28,905.75,0.68904363]
[1768031794740,0.19192746,907.28,905.76,0.68904363]
[1768031794946,0.19192746,907.28,905.77,0.68904363]
[1768031795243,0.19192746,907.28,905.78,0.68904363]
[1768031795447,0.19192746,907.28,905.79,0.68904363]
[1768031795644,0.19192746,907.28,905.8,0.68904363]
[1768031795945,0.19192746,907.28,905.81,0.68904363]
[1768031796147,0.19192746,907.28,905.82,0.68904363]
[1768031796442,0.19192746,907.28,905.83,0.68904363]
[1768031796647,0.19192746,907.28,905.84,0.68904363]
[1768031796843,0.19192746,907.28,905.85,0.68904363]
[1768031797144,0.19192746,907.28,905.86,0.68904363]
[1768031797343,0.19192746,907.28,905.87,0.68904363]
[1768031797544,0.19192746,907.28,905.88,0.68904363]
[1768031797741,0.19192746,907.28,905.89,0.68904363]
[1768031797946,0.19192746,907.28,905.9,0.68904363]
[1768031798247,0.19192746,907.28,905.91,0.68904363]
[1768031798448,0.19192746,907.28,905.92,0.68904363]
[1768031798643,0.19192746,907.28,905.93,0.68904363]
[1768031798844,0.19192746,907.28,905.94,0.68904363]
[1768031799047,0.19192746,907.28,905.95,0.68904363]
[1768031799247,0.19192746,907.28,905.96,0.68904363]
[1768031799447,0.19192746,907.28,905.97,0.68904363]
[1768031799646,0.19192746,907.28,905.98,0.68904363]
[1768031799844,0.19192746,907.28,905.74,1.447]
[1768031800046,0.19192746,907.28,905.75,0.68903773]
[1768031800245,0.19192746,907.28,905.76,0.68903773]
[1768031800449,0.19192746,907.28,905.77,0.68903773]
[1768031800648,0.19192746,907.28,905.78,0.68903773]
[1768031800851,0.19192746,907.28,905.79,0.68903773]
[1768031801152,0.19192746,907.28,905.8,0.68903773]
[1768031801347,0.19192746,907.28,905.81,0.68903773]
[1768031801547,0.19192746,907.28,905.82,0.68903773]
[1768031801748,0.19192746,907.28,905.83,0.68903773]
[1768031802046,0.19192746,907.28,905.84,0.68903773]
[1768031802250,0.19192746,907.28,905.85,0.68903773]
[1768031802448,0.19192746,907.28,905.86,0.68903773]
[1768031802647,0.19192746,907.28,905.87,0.68903773]
[1768031802847,0.19192746,907.28,905.88,0.68903773]
[1768031803049,0.19192746,907.28,905.89,0.68903773]
[1768031803251,0.19192746,907.28,905.9,0.68903773]
[1768031803451,0.19192746,907.28,905.91,0.68903773]
[1768031803751,0.19192746,907.28,905.92,0.68903773]
[1768031803952,0.19192746,907.28,905.93,0.68903773]
[1768031804151,0.19192746,907.28,905.94,0.68903773]
[1768031804348,0.19192746,907.28,905.95,0.68903773]
[1768031804648,0.19192746,907.28,905.96,0.68903773]
[1768031804848,0.19192746,907.28,905.97,0.68903773]
[1768031805051,0.19192746,907.28,905.98,0.68903773]
[1768031805250,0.19192746,907.28,905.74,1.447]
[1768031805453,0.19192746,907.28,905.75,0.68905137]
[1768031805653,0.19192746,907.28,905.76,0.68905137]
[1768031805853,0.19192746,907.28,905.77,0.68905137]
[1768031806051,0.19192746,907.28,905.78,0.68905137]
[1768031806249,0.19192746,907.28,905.79,0.68905137]
[1768031806450,0.19192746,907.28,905.8,0.68905137]
[1768031806648,0.19192746,907.28,905.81,0.68905137]
[1768031806853,0.19192746,907.28,905.82,0.68905137]
[1768031807049,0.19192746,907.28,905.83,0.68905137]
[1768031807253,0.19192746,907.28,905.84,0.68905137]
[1768031807451,0.19192746,907.28,905.85,0.68905137]
[1768031807753,0.19192746,907.28,905.86,0.68905137]
[1768031807951,0.19192746,907.28,905.87,0.68905137]
[1768031808152,0.19192746,907.28,905.88,0.68905137]
[1768031808352,0.19192746,907.28,905.89,0.68905137]
[1768031808650,0.19192746,907.28,905.9,0.68905137]
[1768031808851,0.19192746,907.28,905.91,0.68905137]
[1768031809056,2.75489067,907.45,905.92,0.68905137]
[1768031809352,2.75489067,907.45,905.93,0.68905137]
[1768031809554,2.75489067,907.45,905.94,0.68905137]
[1768031809754,2.75489067,907.45,905.95,0.68905137]
[1768031809953,2.75489067,907.45,905.96,0.68905137]
[1768031810153,2.75489067,907.45,905.97,0.68905137]
[1768031810352,2.75489067,907.45,905.98,0.68905137]
[1768031810552,2.75489067,907.45,905.99,0.68905137]
[1768031810853,2.75489067,907.45,905.74,1.447]
[1768031811152,2.75489067,907.45,905.75,0.68908143]
[1768031811354,2.75489067,907.45,905.76,0.68908143]
[1768031811556,2.75489067,907.45,905.77,0.68908143]
[1768031811754,2.75489067,907.45,905.78,0.68908143]
[1768031811954,2.75489067,907.45,905.79,0.68908143]
[1768031812152,2.75489067,907.45,905.8,0.68908143]
[1768031812354,2.75489067,907.45,905.81,0.68908143]
[1768031812554,2.75489067,907.45,905.82,0.68908143]
[1768031812754,2.75489067,907.46,905.83,0.68908143]
[1768031812954,2.75489067,907.46,905.84,0.68908143]
[1768031813157,2.75489067,907.46,905.85,0.68908143]
[1768031813456,2.75489067,907.46,905.86,0.68908143]
[1768031813654,2.75489067,907.46,905.87,0.68908143]
[1768031813854,2.75489067,907.46,905.88,0.68908143]
[1768031814054,2.75489067,907.46,905.89,0.68908143]
[1768031814254,2.75489067,907.46,905.9,0.68908143]
[1768031814459,2.75489067,907.46,905.91,0.68908143]
[1768031814661,0.19197299,907.08,905.92,0.68908143]
[1768031814957,0.19197299,907.08,905.93,0.68908143]
[1768031815261,0.19197299,907.08,905.94,0.68908143]
[1768031815462,0.19197299,907.08,905.95,0.68908143]
[1768031815662,0.19197299,907.08,905.96,0.68908143]
[1768031815961,0.19197299,907.08,905.97,0.68908143]
[1768031816262,0.19197299,907.08,905.98,0.68908143]
[1768031816464,0.19197299,907.08,905.99,0.68908143]
[1768031816759,0.19197299,907.08,905.74,1.447]
[1768031817060,0.19197299,907.08,905.75,0.69018853]
[1768031817262,0.19197299,907.08,905.76,0.69018853]
[1768031817560,0.19197299,907.08,905.77,0.69018853]
[1768031817759,0.19197299,907.08,905.78,0.69018853]
[1768031817958,0.19197299,907.08,905.79,0.69018853]
[1768031818164,0.19197299,907.08,905.8,0.69018853]
[1768031818359,0.19197299,907.08,905.81,0.69018853]
[1768031818564,0.19197299,907.08,905.82,0.69018853]
[1768031818763,0.19197299,907.08,905.83,0.69018853]
[1768031819063,0.19197299,907.08,905.87,0.82921563]
[1768031819258,0.19197299,907.08,905.88,0.69018853]
[1768031819462,0.19197299,907.08,905.89,0.69018853]
[1768031819661,0.19197299,907.08,905.9,0.69018853]
[1768031819863,0.19197299,907.08,905.91,0.69018853]
[1768031820063,0.19197299,907.08,905.92,0.69018853]
[1768031820263,0.19197299,907.08,905.93,0.69018853]
[1768031820461,0.19197299,907.08,905.94,0.69018853]
[1768031820763,0.19197299,907.08,905.95,0.69018853]
[1768031820963,0.19197299,907.08,905.96,0.69018853]
[1768031821161,0.19197299,907.08,905.97,0.69018853]
[1768031821461,0.19197299,907.08,905.98,0.69018853]
[1768031821664,0.19197299,907.08,905.99,0.69018853]
[1768031821964,0.19197299,907.08,906.0,0.69018853]
[1768031822159,0.19197299,907.08,906.01,0.69018853]
[1768031822363,0.19197299,907.08,906.02,0.69018853]
[1768031822564,0.19197299,907.08,906.03,0.69018853]
[1768031822860,0.19197299,907.08,906.04,0.69018853]
[1768031823064,0.19197299,907.08,906.05,0.69018853]
[1768031823265,0.19197299,907.08,906.06,0.69018853]
[1768031823568,0.19197299,907.08,906.07,0.69018853]
[1768031823768,0.19197299,907.08,906.08,0.69018853]
[1768031824064,0.19197299,907.08,906.09,0.69018853]
[1768031824268,0.19197299,907.08,906.1,0.69018853]
[1768031824468,0.19197299,907.08,905.81,0.82921563]
[1768031824667,0.19197299,907.08,905.82,0.68897493]
[1768031824868,0.19197299,907.08,905.83,0.68897493]
[1768031825066,0.19197299,907.08,905.84,0.68897493]
[1768031825266,0.19197299,907.08,905.85,0.68897493]
[1768031825464,0.19197299,907.08,905.86,0.68897493]
[1768031825670,0.19197299,907.08,905.87,0.68897493]
[1768031825865,0.19197299,907.08,905.88,0.68897493]
[1768031826069,0.19197299,907.08,905.89,0.68897493]
[1768031826368,0.19197299,907.08,905.9,0.68897493]
[1768031826569,0.19197299,907.08,905.91,0.68897493]
[1768031826767,0.19197299,907.08,905.92,0.68897493]
[1768031826970,0.19197299,907.08,905.93,0.68897493]
[1768031827170,0.19197299,907.08,905.94,0.68897493]
[1768031827370,0.19197299,907.08,905.95,0.68897493]
[1768031827566,0.19197299,907.08,905.96,0.68897493]
[1768031827867,0.19197299,907.08,905.97,0.68897493]
[1768031828066,0.19197299,907.08,905.98,0.68897493]
[1768031828270,0.19197299,907.08,905.99,0.68897493]
[1768031828468,0.19197299,907.08,906.0,0.68897493]
[1768031828673,0.19197299,907.08,906.01,0.68897493]
[1768031828871,0.19197299,907.08,906.02,0.68897493]
[1768031829071,0.19197299,907.08,906.03,0.68897493]
[1768031829269,0.19197299,907.08,906.04,0.68897493]
[1768031829569,0.19197299,907.08,906.05,0.68897493]
[1768031829767,0.19197299,907.08,906.06,0.68897493]
[1768031829970,0.19197299,907.08,906.07,0.68897493]
[1768031830169,0.19197299,907.08,905.79,0.82921563]
[1768031830473,0.19197299,907.08,905.8,0.68854511]
[1768031830672,0.19197299,907.08,905.81,0.68854511]
[1768031830873,0.19197299,907.08,905.82,0.68854511]
[1768031831169,0.19197299,907.08,905.78,0.82921563]
[1768031831170,0.19197299,907.08,905.83,0.68854511]
[1768031831369,0.19197299,907.08,905.84,0.68854511]
[1768031831574,0.19197299,907.08,905.85,0.68854511]
[1768031831773,0.19197299,907.08,905.78,0.82921563]
[1768031831774,0.19197299,907.08,905.86,0.68854511]
[1768031831971,0.19197299,907.08,905.87,0.68854511]
[1768031832169,0.19197299,907.08,905.88,0.68854511]
[1768031832474,0.19197299,907.08,905.89,0.68854511]
[1768031832676,0.19197299,907.08,905.9,0.68854511]
[1768031832875,0.19197299,907.08,905.91,0.68854511]
[1768031833071,0.19197299,907.08,905.92,0.68844329]
[1768031833276,0.19197299,907.08,905.93,0.68844329]
[1768031833476,0.19197299,907.08,905.94,0.68844329]
[1768031833678,0.19197299,907.08,905.95,0.68844329]
[1768031833877,0.19197299,907.08,905.96,0.68844329]
[1768031834177,0.19197299,907.08,905.97,0.68844329]
[1768031834376,0.19197299,907.08,905.98,0.68844329]
[1768031834577,0.19197299,907.08,905.99,0.68844329]
[1768031834873,0.19197299,907.08,906.0,0.68844329]
[1768031835077,0.19197299,907.08,906.01,0.68844329]
[1768031835275,0.19197299,907.08,906.02,0.68844329]
[1768031835575,0.19197299,907.08,906.03,0.68844329]
[1768031835775,0.19197299,907.08,906.04,0.68844329]
[1768031835973,0.19197299,907.08,906.05,0.68844329]
[1768031836175,0.19197299,907.08,905.76,0.82709108]
[1768031836378,0.19197299,907.08,905.77,0.68834205]
[1768031836673,0.19197299,907.08,906.06,2.053]
[1768031848988,0.19197299,907.08,906.07,0.68864181]
[1768031849186,0.19197299,907.08,906.08,0.68864181]
[1768031849384,0.19197299,907.08,906.09,0.68864181]
[1768031849589,0.19197299,907.08,906.1,0.68864181]
[1768031849889,0.19197299,907.08,906.11,0.68864181]
[1768031850084,0.19197299,907.08,906.12,0.68864181]
[1768031850283,0.19197299,907.08,906.13,0.68864181]
[1768031850486,0.19197299,907.08,906.14,0.68864181]
[1768031850688,0.19197299,907.08,906.15,0.68864181]
[1768031850885,0.19197299,907.08,906.16,0.68864181]
[1768031851187,0.19197299,907.08,906.17,0.68864181]
[1768031851388,0.19197299,907.08,906.18,0.68864181]
[1768031851590,0.19197299,907.08,906.06,2.053]
[1768031851888,0.19197299,907.08,906.07,0.68832421]
[1768031852091,0.19197299,907.08,906.08,0.68832421]
[1768031852291,0.19197299,907.08,906.09,0.68832421]
[1768031852485,0.19197299,907.08,906.1,0.68832421]
[1768031852691,0.19197299,907.08,906.11,0.68832421]
[1768031852987,0.19197299,907.08,906.12,0.68832421]
[1768031853190,0.19197299,907.08,906.13,0.68832421]
[1768031853386,0.19197299,907.08,906.14,0.68832421]
[1768031853589,0.19197299,907.08,906.15,0.68832421]
[1768031853790,0.19197299,907.08,906.16,0.68832421]
[1768031853990,0.19197299,907.08,906.17,0.68832421]
[1768031854189,0.19197299,907.08,906.18,0.68832421]
[1768031854392,0.19197299,907.08,906.06,2.053]
[1768031854592,0.19197299,907.08,906.07,0.68822883]
[1768031854792,0.19197299,907.08,906.08,0.68822883]
[1768031854988,0.19197299,907.08,906.09,0.68822883]
[1768031855192,0.19197299,907.08,906.1,0.68822883]
[1768031855492,0.19197299,907.08,906.11,0.68822883]
[1768031855688,0.19197299,907.08,906.12,0.68822883]
[1768031855892,0.19197299,907.08,906.06,2.053]
[1768031855893,0.19197299,907.08,906.13,0.68822883]
[1768031856188,0.19197299,907.08,906.14,0.68822883]
[1768031856389,0.19197299,907.08,906.15,0.68822883]
[1768031856589,0.19197299,907.08,906.16,0.68822883]
[1768031856892,0.19197299,907.08,906.17,0.68822883]
[1768031857089,0.19197299,907.08,906.18,0.68822883]
[1768031857288,0.19197299,907.08,905.89,0.82709108]
[1768031857492,0.19197299,907.08,905.9,0.68823625]
[1768031857693,0.19197299,907.08,905.91,0.68823625]
[1768031857892,0.19197299,907.08,905.92,0.68823625]
[1768031858187,0.19197299,907.08,905.93,0.68823625]
[1768031858390,0.19197299,907.08,905.94,0.68823625]
[1768031858589,0.19197299,907.08,905.95,0.68823625]
[1768031858794,0.19197299,907.08,905.96,0.68823625]
[1768031859088,0.19197299,907.08,905.97,0.68823625]
[1768031859289,0.19197299,907.08,905.98,0.68823625]
[1768031859489,0.19197299,907.08,905.99,0.68823625]
[1768031859690,0.19197299,907.08,906.0,0.68823625]
[1768031859892,0.19197299,907.08,906.01,0.68823625]
[1768031860090,0.19197299,907.08,906.02,0.68823625]
[1768031860295,0.19197299,907.08,906.03,0.68823625]
[1768031860495,0.19197299,907.08,906.04,0.68823625]
[1768031860693,0.19197299,907.08,906.05,0.68823625]
[1768031860896,0.19197299,907.08,906.06,0.68823625]
[1768031861193,0.19197299,907.08,906.07,0.68823625]
[1768031861397,0.19197299,907.08,906.08,0.68823625]
[1768031861596,0.19197299,907.08,906.09,0.68823625]
[1768031861797,0.19197299,907.08,906.1,0.68823625]
[1768031861992,0.19197299,907.08,906.11,0.68823625]
[1768031862297,0.19197299,907.08,906.12,0.68823625]
[1768031862499,0.19197299,907.08,906.13,0.68823625]
[1768031862701,0.19197299,907.08,906.14,0.68823625]
[1768031862900,0.19197299,907.08,906.15,0.68823625]
[1768031863200,0.19197299,907.08,906.16,0.68823625]
[1768031863400,0.19197299,907.08,906.17,0.68823625]
[1768031863597,0.19197299,907.08,906.18,0.68823625]
[1768031863897,0.19197299,907.08,906.19,0.68823625]
[1768031864096,0.19197299,907.08,906.2,0.68823625]
[1768031864396,0.19197299,907.08,905.98,1.787]
[1768031864601,0.19197299,907.08,905.99,0.68856133]
[1768031864799,0.19197299,907.08,906.0,0.68856133]
[1768031864997,0.19197299,907.08,906.01,0.68856133]
[1768031865200,0.19197299,907.08,906.02,0.68856133]
[1768031865399,0.19197299,907.08,906.03,0.68856133]
[1768031865598,0.19197299,907.08,906.04,0.68856133]
[1768031865803,0.19197299,907.08,906.05,0.68856133]
[1768031866003,0.19197299,907.08,906.06,0.68856133]
[1768031866303,0.19197299,907.08,906.07,0.68856133]
[1768031866603,0.19197299,907.08,906.08,0.68856133]
[1768031866800,0.19197299,907.08,906.09,0.68856133]
[1768031867100,0.19197299,907.08,906.1,0.68856133]
[1768031867400,0.19197299,907.08,905.98,1.787]
[1768031867603,0.19197299,907.08,905.99,0.6886011]
[1768031867802,0.19197299,907.08,906.0,0.6886011]
[1768031868103,0.19197299,907.08,906.01,0.6886011]
[1768031868301,0.19197299,907.08,906.02,0.6886011]
[1768031868501,0.19197299,907.08,906.03,0.6886011]
[1768031868699,0.19197299,907.08,906.04,0.6886011]
[1768031868903,0.19197299,907.08,906.05,0.6886011]
[1768031869102,0.19197299,907.08,906.06,0.6886011]
[1768031869402,0.19197299,907.08,906.07,0.6886011]
[1768031869604,0.19197299,907.08,906.08,0.6886011]
[1768031869804,0.19197299,907.08,906.09,0.6886011]
[1768031870004,0.19197299,907.08,905.98,1.787]
[1768031870204,0.19197299,907.08,905.99,0.68860806]
[1768031870404,0.19197299,907.08,906.0,0.68860806]
[1768031870701,0.19197299,907.08,906.01,0.68860806]
[1768031870903,0.19197299,907.08,906.02,0.68860806]
[1768031871101,0.19197299,907.08,906.03,0.68860806]
[1768031871302,0.19197299,907.08,906.04,0.68860806]
[1768031871504,0.19197299,907.08,906.05,0.68860806]
[1768031871702,0.19197299,907.08,906.06,0.68860806]
[1768031871905,0.19197299,907.08,906.07,0.68860806]
[1768031872103,0.19197299,907.08,906.08,0.68860806]
[1768031872402,0.19197299,907.08,906.09,0.68860806]
[1768031872702,0.19197299,907.08,905.98,1.787]
[1768031872902,0.19197299,907.08,905.99,0.68858206]
[1768031873105,0.19197299,907.08,906.0,0.68858206]
[1768031873305,0.19197299,907.08,906.01,0.68858206]
[1768031873501,0.19197299,907.08,906.02,0.68858206]
[1768031873706,0.19197299,907.08,906.03,0.68858206]
[1768031873905,0.19197299,907.08,906.04,0.68858206]
[1768031874108,0.19197299,907.08,906.05,0.68858206]
[1768031874310,0.19197299,907.08,906.06,0.68858206]
[1768031874507,0.19197299,907.08,906.07,0.68858206]
[1768031874705,0.19197299,907.08,906.08,0.68858206]
[1768031874905,0.19197299,907.08,906.09,0.68858206]
[1768031875106,0.19197299,907.08,905.98,1.787]
[1768031875403,0.19197299,907.08,905.99,0.68859227]
[1768031875608,0.19197299,907.08,906.0,0.68859227]
[1768031875807,0.19197299,907.08,906.01,0.68859227]
[1768031876008,0.19197299,907.08,906.02,0.68859227]
[1768031876208,0.19197299,907.08,906.03,0.68859227]
[1768031876407,0.19197299,907.08,906.04,0.68859227]
[1768031876612,0.19197299,907.08,906.05,0.68859227]
[1768031876809,0.19197299,907.08,906.06,0.68859227]
[1768031877010,0.19197299,907.08,906.07,0.68859227]
[1768031877211,0.19197299,907.08,906.08,0.68859227]
[1768031877411,0.19197299,907.08,906.09,0.68859227]
[1768031877611,0.19197299,907.08,905.98,1.787]
[1768031877813,0.19197299,907.08,905.99,0.68859921]
[1768031878011,0.19197299,907.08,906.0,0.68859921]
[1768031878310,0.19197299,907.08,906.01,0.68859921]
[1768031878613,0.19197299,907.08,906.02,0.68859921]
[1768031878813,0.19197299,907.08,906.03,0.68859921]
[1768031879110,0.19197299,907.08,905.98,1.787]
[1768031879111,0.19197299,907.08,906.04,0.68859921]
[1768031879312,0.19197299,907.08,906.05,0.68859921]
[1768031879514,0.19197299,907.08,906.06,0.68859921]
[1768031879712,0.19197299,907.08,906.07,0.68859921]
[1768031879913,0.19197299,907.08,906.08,0.68859921]
[1768031880112,0.19197299,907.08,906.09,0.68859921]
[1768031880312,0.19197299,907.08,905.98,1.787]
[1768031880514,0.19197299,907.08,905.99,0.68859328]
[1768031880716,0.19197299,907.08,906.0,0.68859328]
[1768031880916,0.19197299,907.08,906.01,0.68859328]
[1768031881112,0.19197299,907.08,905.98,1.787]
[1768031881113,0.19197299,907.08,906.02,0.68859328]
[1768031881313,0.19197299,907.08,906.03,0.68859328]
[1768031881515,0.19197299,907.08,906.04,0.68859328]
[1768031881714,0.19197299,907.08,906.05,0.68859328]
[1768031881912,0.19197299,907.08,906.06,0.68859328]
[1768031882215,0.19197299,907.08,906.07,0.68859328]
[1768031882415,0.19197299,907.08,906.08,0.68859328]
[1768031882616,0.19197299,907.08,906.09,0.68859328]
[1768031882811,0.19197299,907.08,905.98,1.787]
[1768031883013,0.19197299,907.08,905.99,0.68861059]
[1768031883213,0.19197299,907.08,906.0,0.68861059]